[Event "*** Titled Tuesday Blitz"]
[Site "Chess.com"]
[Date "2021.04.27"]
[Round "11"]
[White "riospm"]
[Black "harlem4brew"]
[Result "1-0"]
[WhiteElo "2540"]
[BlackElo "2407"]
[TimeControl "180+1"]
[EndTime "12:02:09 PDT"]
[Termination "riospm won by resignation"]

1. e4 {[%clk 0:03:00.9]} 1... c5 {[%clk 0:02:59.4]} 2. Nf3 {[%clk 0:02:57.4]}
2... d6 {[%clk 0:02:59]} 3. d4 {[%clk 0:02:57.1]} 3... cxd4 {[%clk 0:02:59.9]}
4. Nxd4 {[%clk 0:02:56.5]} 4... Nf6 {[%clk 0:03:00.4]} 5. Nc3 {[%clk 0:02:55.4]}
5... g6 {[%clk 0:02:59.6]} 6. Be3 {[%clk 0:02:54.9]} 6... Bg7 {[%clk 0:02:59.9]}
7. f3 {[%clk 0:02:55.5]} 7... O-O {[%clk 0:02:58.7]} 8. Qd2 {[%clk 0:02:55.9]}
8... Nc6 {[%clk 0:02:57.7]} 9. Bc4 {[%clk 0:02:55.2]} 9... Bd7 {[%clk
0:02:57.6]} 10. O-O-O {[%clk 0:02:54.6]} 10... Rc8 {[%clk 0:02:57.2]} 11. Bb3
{[%clk 0:02:54.7]} 11... Ne5 {[%clk 0:02:56.7]} 12. Kb1 {[%clk 0:02:54.3]} 12...
Nc4 {[%clk 0:02:56.3]} 13. Bxc4 {[%clk 0:02:53.7]} 13... Rxc4 {[%clk 0:02:57.2]}
14. g4 {[%clk 0:02:53]} 14... Qc7 {[%clk 0:02:53.4]} 15. h4 {[%clk 0:02:45.7]}
15... Rc8 {[%clk 0:02:47.6]} 16. h5 {[%clk 0:02:43.4]} 16... Rxc3 {[%clk
0:02:39.5]} 17. bxc3 {[%clk 0:02:42.5]} 17... Qxc3 {[%clk 0:02:40.4]} 18. Qxc3
{[%clk 0:02:42]} 18... Rxc3 {[%clk 0:02:40.8]} 19. Rd3 {[%clk 0:02:42.4]} 19...
Rc8 {[%clk 0:02:29.9]} 20. hxg6 {[%clk 0:02:41.8]} 20... fxg6 {[%clk 0:02:18.7]}
21. Nb3 {[%clk 0:02:40.9]} 21... Bb5 {[%clk 0:02:15.3]} 22. Rd2 {[%clk
0:02:40.5]} 22... a6 {[%clk 0:02:12.1]} 23. Bd4 {[%clk 0:02:39.9]} 23... Nd7
{[%clk 0:02:09.7]} 24. Bxg7 {[%clk 0:02:38.9]} 24... Kxg7 {[%clk 0:02:10.6]} 25.
Nd4 {[%clk 0:02:37.4]} 25... Bc4 {[%clk 0:02:08.7]} 26. Rdh2 {[%clk 0:02:35.7]}
26... Bg8 {[%clk 0:02:06.4]} 27. g5 {[%clk 0:02:12.3]} 27... Ne5 {[%clk
0:02:05.1]} 28. f4 {[%clk 0:02:09.3]} 28... Ng4 {[%clk 0:02:02.3]} 29. Rd2
{[%clk 0:01:58.7]} 29... Rc4 {[%clk 0:01:55.5]} 30. Rg1 {[%clk 0:01:53]} 30...
Ne3 {[%clk 0:01:53.2]} 31. Rd3 {[%clk 0:01:41.5]} 31... Rb4+ {[%clk 0:01:48]}
32. Ka1 {[%clk 0:01:33]} 32... Rxd4 {[%clk 0:01:33.1]} 33. Rxe3 {[%clk
0:01:32.4]} 33... Ra4 {[%clk 0:01:32.3]} 34. a3 {[%clk 0:01:31]} 34... b5 {[%clk
0:01:31.4]} 35. Kb2 {[%clk 0:01:29.3]} 35... Rc4 {[%clk 0:01:29.5]} 36. c3
{[%clk 0:01:25.9]} 36... a5 {[%clk 0:01:29.1]} 37. Rd1 {[%clk 0:01:16.1]} 37...
Bf7 {[%clk 0:01:26.9]} 38. Rd4 {[%clk 0:01:12.4]} 38... Rc5 {[%clk 0:01:25.2]}
39. e5 {[%clk 0:01:11]} 39... dxe5 {[%clk 0:01:23.4]} 40. Rxe5 {[%clk 0:01:11]}
40... Be6 {[%clk 0:01:23.9]} 41. Rxc5 {[%clk 0:01:10.5]} 1-0

[Event "*** Titled Tuesday Blitz"]
[Site "Chess.com"]
[Date "2021.04.27"]
[Round "11"]
[White "MarkoPe"]
[Black "canary2016"]
[Result "1-0"]
[WhiteElo "2233"]
[BlackElo "1994"]
[TimeControl "180+1"]
[EndTime "12:02:14 PDT"]
[Termination "MarkoPe won by checkmate"]

1. e4 {[%clk 0:02:56.9]} 1... c6 {[%clk 0:02:59.4]} 2. d4 {[%clk 0:02:56.9]}
2... d5 {[%clk 0:02:59.4]} 3. e5 {[%clk 0:02:57.6]} 3... Bf5 {[%clk 0:02:59.2]}
4. h4 {[%clk 0:02:58.2]} 4... h5 {[%clk 0:02:58.7]} 5. c4 {[%clk 0:02:58.2]}
5... e6 {[%clk 0:02:58.4]} 6. Nc3 {[%clk 0:02:58.8]} 6... Ne7 {[%clk 0:02:58.3]}
7. Nf3 {[%clk 0:02:56.4]} 7... dxc4 {[%clk 0:02:58.2]} 8. Bxc4 {[%clk
0:02:56.4]} 8... Nd5 {[%clk 0:02:58.7]} 9. Bg5 {[%clk 0:02:56.7]} 9... Be7
{[%clk 0:02:58.3]} 10. Qd2 {[%clk 0:02:56.7]} 10... O-O {[%clk 0:02:57.4]} 11.
O-O {[%clk 0:02:56.4]} 11... Nd7 {[%clk 0:02:53.9]} 12. Rac1 {[%clk 0:02:55.1]}
12... N7b6 {[%clk 0:02:53.8]} 13. Bd3 {[%clk 0:02:54.2]} 13... Bg4 {[%clk
0:02:49.1]} 14. Be2 {[%clk 0:02:54.8]} 14... Rc8 {[%clk 0:02:37.6]} 15. Ne4
{[%clk 0:02:54.7]} 15... Qc7 {[%clk 0:02:32.2]} 16. Bxe7 {[%clk 0:02:52.7]}
16... Qxe7 {[%clk 0:02:31.6]} 17. Nd6 {[%clk 0:02:53.2]} 17... Rcd8 {[%clk
0:02:32.1]} 18. Ng5 {[%clk 0:02:49.1]} 18... Nc8 {[%clk 0:02:29]} 19. Bxg4
{[%clk 0:02:45]} 19... hxg4 {[%clk 0:02:28.8]} 20. Nde4 {[%clk 0:02:43]} 20...
f6 {[%clk 0:02:22.9]} 21. exf6 {[%clk 0:02:31.4]} 21... gxf6 {[%clk 0:02:22.8]}
22. Rfe1 {[%clk 0:02:14.9]} 22... fxg5 {[%clk 0:02:21.1]} 23. Nxg5 {[%clk
0:02:15.8]} 23... Rf6 {[%clk 0:02:16.5]} 24. Qd3 {[%clk 0:02:13.2]} 24... Re8
{[%clk 0:02:13.2]} 25. Qe4 {[%clk 0:02:13]} 25... Rf4 {[%clk 0:01:57.9]} 26.
Qg6+ {[%clk 0:02:10.8]} 26... Kh8 {[%clk 0:01:49.6]} 27. Rxe6 {[%clk 0:02:08.1]}
27... Rf6 {[%clk 0:01:13.7]} 28. Qxe8+ {[%clk 0:01:56.4]} 28... Qxe8 {[%clk
0:01:04.8]} 29. Rxe8+ {[%clk 0:01:57.3]} 29... Kg7 {[%clk 0:01:05.4]} 30. Rxc8
{[%clk 0:01:57]} 30... Nf4 {[%clk 0:01:00.6]} 31. Re1 {[%clk 0:01:53.2]} 31...
Nd3 {[%clk 0:00:57.7]} 32. Re7+ {[%clk 0:01:52.8]} 32... Kg6 {[%clk 0:00:57.9]}
33. Rg8+ {[%clk 0:01:46.9]} 33... Kf5 {[%clk 0:00:56.9]} 34. Rxb7 {[%clk
0:01:43.6]} 34... Nc1 {[%clk 0:00:43.9]} 35. Rxa7 {[%clk 0:01:40.8]} 35... Ne2+
{[%clk 0:00:42.3]} 36. Kf1 {[%clk 0:01:40.7]} 36... Nxd4 {[%clk 0:00:41.6]} 37.
Ra5+ {[%clk 0:01:40]} 37... Kf4 {[%clk 0:00:40.4]} 38. g3# {[%clk 0:01:39.9]}
1-0

[Event "*** Titled Tuesday Blitz"]
[Site "Chess.com"]
[Date "2021.04.27"]
[Round "11"]
[White "pastouche06"]
[Black "nrvisakh"]
[Result "0-1"]
[WhiteElo "2569"]
[BlackElo "2796"]
[TimeControl "180+1"]
[EndTime "12:02:19 PDT"]
[Termination "nrvisakh won by resignation"]

1. d4 {[%clk 0:03:00.9]} 1... Nf6 {[%clk 0:02:59.5]} 2. c4 {[%clk 0:02:58.3]}
2... e6 {[%clk 0:02:59.8]} 3. Nc3 {[%clk 0:02:58.2]} 3... d5 {[%clk 0:03:00.2]}
4. cxd5 {[%clk 0:02:58]} 4... Nxd5 {[%clk 0:03:01.1]} 5. e4 {[%clk 0:02:55.2]}
5... Nxc3 {[%clk 0:02:59.4]} 6. bxc3 {[%clk 0:02:56.1]} 6... c5 {[%clk
0:03:00.3]} 7. a3 {[%clk 0:02:55.3]} 7... cxd4 {[%clk 0:02:58.6]} 8. cxd4 {[%clk
0:02:56.2]} 8... Be7 {[%clk 0:02:59.3]} 9. Nf3 {[%clk 0:02:55.3]} 9... O-O
{[%clk 0:03:00.2]} 10. Bc4 {[%clk 0:02:50.2]} 10... b6 {[%clk 0:02:54.1]} 11.
O-O {[%clk 0:02:47.6]} 11... Bb7 {[%clk 0:02:53.9]} 12. Qe2 {[%clk 0:02:43.4]}
12... Nd7 {[%clk 0:02:54]} 13. Bb2 {[%clk 0:02:38.1]} 13... Rc8 {[%clk
0:02:53.5]} 14. Bd3 {[%clk 0:02:31.4]} 14... Qc7 {[%clk 0:02:51.8]} 15. Qe3
{[%clk 0:02:17.2]} 15... Rfd8 {[%clk 0:02:44.1]} 16. Rad1 {[%clk 0:02:10.9]}
16... Qb8 {[%clk 0:02:40.9]} 17. g4 {[%clk 0:01:48]} 17... Nf8 {[%clk
0:02:30.5]} 18. Ne5 {[%clk 0:01:24]} 18... f6 {[%clk 0:02:21.8]} 19. Nf3 {[%clk
0:01:16.8]} 19... Ng6 {[%clk 0:02:21.6]} 20. e5 {[%clk 0:01:10.8]} 20... Bd5
{[%clk 0:01:55.9]} 21. exf6 {[%clk 0:00:56.1]} 21... Bxf6 {[%clk 0:01:53.8]} 22.
Bxg6 {[%clk 0:00:51.8]} 22... hxg6 {[%clk 0:01:53.3]} 23. Ne5 {[%clk 0:00:51.9]}
23... Rc2 {[%clk 0:01:45.8]} 24. Rd2 {[%clk 0:00:45.6]} 24... Rxd2 {[%clk
0:01:44.4]} 25. Qxd2 {[%clk 0:00:46.5]} 25... Bxe5 {[%clk 0:01:42.6]} 26. dxe5
{[%clk 0:00:47.2]} 26... Bc4 {[%clk 0:01:41]} 27. Qg5 {[%clk 0:00:42.9]} 27...
Bxf1 {[%clk 0:01:40.8]} 28. Kxf1 {[%clk 0:00:43.1]} 28... Rd1+ {[%clk 0:01:34]}
29. Kg2 {[%clk 0:00:42.3]} 29... Qa8+ {[%clk 0:01:32.5]} 30. f3 {[%clk
0:00:42.8]} 30... Rd3 {[%clk 0:01:27.4]} 31. Qf4 {[%clk 0:00:42.6]} 31... Qf8
{[%clk 0:01:26]} 0-1

[Event "*** Titled Tuesday Blitz"]
[Site "Chess.com"]
[Date "2021.04.27"]
[Round "11"]
[White "szefru"]
[Black "ChronicUnhappiness"]
[Result "0-1"]
[WhiteElo "2185"]
[BlackElo "2317"]
[TimeControl "180+1"]
[EndTime "12:02:20 PDT"]
[Termination "ChronicUnhappiness won by resignation"]

1. e4 {[%clk 0:03:00.9]} 1... c5 {[%clk 0:02:59]} 2. Nf3 {[%clk 0:03:00.7]} 2...
Nc6 {[%clk 0:02:58.8]} 3. Bb5 {[%clk 0:03:00.2]} 3... g6 {[%clk 0:02:57.7]} 4.
O-O {[%clk 0:02:59.5]} 4... Bg7 {[%clk 0:02:57.8]} 5. Nc3 {[%clk 0:03:00.1]}
5... Nf6 {[%clk 0:02:57.9]} 6. h3 {[%clk 0:02:58.8]} 6... d6 {[%clk 0:02:40.7]}
7. e5 {[%clk 0:02:52.3]} 7... dxe5 {[%clk 0:02:39.4]} 8. Nxe5 {[%clk 0:02:53.2]}
8... Qb6 {[%clk 0:02:29.2]} 9. Bxc6+ {[%clk 0:02:35]} 9... bxc6 {[%clk
0:02:28.9]} 10. d3 {[%clk 0:02:06.8]} 10... O-O {[%clk 0:02:28.1]} 11. Nc4
{[%clk 0:02:04.6]} 11... Qc7 {[%clk 0:02:26.6]} 12. Be3 {[%clk 0:02:04.6]} 12...
Nd5 {[%clk 0:02:24.9]} 13. Bxc5 {[%clk 0:01:42.4]} 13... Nxc3 {[%clk 0:02:22.1]}
14. bxc3 {[%clk 0:01:43.3]} 14... Bxc3 {[%clk 0:02:21.5]} 15. Rb1 {[%clk
0:01:44]} 15... Be6 {[%clk 0:02:18]} 16. Ne3 {[%clk 0:01:36.9]} 16... Bxa2
{[%clk 0:02:13.3]} 17. Ra1 {[%clk 0:01:22.7]} 17... Be6 {[%clk 0:02:08.2]} 18.
f4 {[%clk 0:01:03.5]} 18... a5 {[%clk 0:01:38]} 19. f5 {[%clk 0:01:03.6]} 19...
Qe5 {[%clk 0:01:37.3]} 20. fxe6 {[%clk 0:00:34.6]} 20... Qxc5 {[%clk 0:01:34.9]}
21. exf7+ {[%clk 0:00:28.1]} 21... Rxf7 {[%clk 0:01:34.1]} 22. Rxf7 {[%clk
0:00:26.6]} 22... Qxe3+ {[%clk 0:01:28.8]} 23. Rf2 {[%clk 0:00:23.7]} 23... Rf8
{[%clk 0:01:27.2]} 24. Qf1 {[%clk 0:00:18.2]} 24... Rxf2 {[%clk 0:01:23.6]} 25.
Qxf2 {[%clk 0:00:17.7]} 25... Qxf2+ {[%clk 0:01:23.3]} 26. Kxf2 {[%clk
0:00:18.6]} 26... Bxa1 {[%clk 0:01:23.7]} 0-1

[Event "*** Titled Tuesday Blitz"]
[Site "Chess.com"]
[Date "2021.04.27"]
[Round "11"]
[White "juancruzarias"]
[Black "Rsnr"]
[Result "0-1"]
[WhiteElo "2610"]
[BlackElo "2766"]
[TimeControl "180+1"]
[EndTime "12:02:24 PDT"]
[Termination "Rsnr won by checkmate"]

1. d4 {[%clk 0:02:56.9]} 1... d5 {[%clk 0:03:00]} 2. Nf3 {[%clk 0:02:57.2]} 2...
Nf6 {[%clk 0:03:00]} 3. e3 {[%clk 0:02:57.4]} 3... c6 {[%clk 0:02:56.4]} 4. Nbd2
{[%clk 0:02:49.1]} 4... Bg4 {[%clk 0:02:53.1]} 5. h3 {[%clk 0:02:48.6]} 5... Bh5
{[%clk 0:02:53]} 6. g4 {[%clk 0:02:48.9]} 6... Bg6 {[%clk 0:02:53.2]} 7. Ne5
{[%clk 0:02:49.4]} 7... Nbd7 {[%clk 0:02:52.2]} 8. h4 {[%clk 0:02:48.3]} 8... h6
{[%clk 0:02:27]} 9. Nxg6 {[%clk 0:02:48.5]} 9... fxg6 {[%clk 0:02:27.9]} 10. Bd3
{[%clk 0:02:49.1]} 10... Kf7 {[%clk 0:02:28.1]} 11. h5 {[%clk 0:02:49.5]} 11...
g5 {[%clk 0:02:25.3]} 12. Bg6+ {[%clk 0:02:48.8]} 12... Kg8 {[%clk 0:02:25.7]}
13. b3 {[%clk 0:02:29.7]} 13... e5 {[%clk 0:02:26]} 14. Bb2 {[%clk 0:02:28.6]}
14... Bd6 {[%clk 0:02:25.8]} 15. Qf3 {[%clk 0:02:23.7]} 15... Qe7 {[%clk
0:02:25.5]} 16. O-O-O {[%clk 0:02:19.7]} 16... Rf8 {[%clk 0:02:24.8]} 17. Qg2
{[%clk 0:02:15.7]} 17... a5 {[%clk 0:02:20]} 18. Kb1 {[%clk 0:02:15.4]} 18... a4
{[%clk 0:02:20.1]} 19. Rhe1 {[%clk 0:02:12.1]} 19... a3 {[%clk 0:02:15.5]} 20.
Ba1 {[%clk 0:02:09.8]} 20... e4 {[%clk 0:02:15.6]} 21. f3 {[%clk 0:02:06]} 21...
exf3 {[%clk 0:02:15.5]} 22. Nxf3 {[%clk 0:01:44.1]} 22... Ne4 {[%clk 0:02:15.5]}
23. Bf5 {[%clk 0:01:34.4]} 23... Ng3 {[%clk 0:02:05.7]} 24. Bd3 {[%clk
0:01:30.4]} 24... Nf6 {[%clk 0:01:51.7]} 25. Ne5 {[%clk 0:01:28.3]} 25... Bxe5
{[%clk 0:01:51.6]} 26. dxe5 {[%clk 0:01:28.1]} 26... Nfe4 {[%clk 0:01:52.3]} 27.
Rf1 {[%clk 0:01:23.8]} 27... Qb4 {[%clk 0:01:47.9]} 28. Rxf8+ {[%clk 0:01:20.4]}
28... Kxf8 {[%clk 0:01:48.3]} 29. Bxe4 {[%clk 0:00:27]} 29... Nxe4 {[%clk
0:01:49.2]} 30. Kc1 {[%clk 0:00:13.8]} 30... Ke7 {[%clk 0:01:48.6]} 31. Rf1
{[%clk 0:00:12.9]} 31... Rf8 {[%clk 0:01:45.4]} 32. Rxf8 {[%clk 0:00:09.3]}
32... Qe1# {[%clk 0:01:45.6]} 0-1

[Event "*** Titled Tuesday Blitz"]
[Site "Chess.com"]
[Date "2021.04.27"]
[Round "11"]
[White "blitzking1729"]
[Black "Mihnea2017"]
[Result "1-0"]
[WhiteElo "2656"]
[BlackElo "2475"]
[TimeControl "180+1"]
[EndTime "12:02:36 PDT"]
[Termination "blitzking1729 won by resignation"]

1. e4 {[%clk 0:03:00.9]} 1... c5 {[%clk 0:02:59.2]} 2. b4 {[%clk 0:02:59.5]}
2... cxb4 {[%clk 0:02:57.6]} 3. a3 {[%clk 0:02:59.3]} 3... e6 {[%clk 0:02:56]}
4. axb4 {[%clk 0:02:59]} 4... Bxb4 {[%clk 0:02:55.6]} 5. c3 {[%clk 0:02:59.4]}
5... Be7 {[%clk 0:02:48.1]} 6. d4 {[%clk 0:02:59.3]} 6... d6 {[%clk 0:02:45.2]}
7. Bd3 {[%clk 0:02:58.7]} 7... Nf6 {[%clk 0:02:44.9]} 8. f4 {[%clk 0:02:58.9]}
8... O-O {[%clk 0:02:39.8]} 9. Nf3 {[%clk 0:02:59.1]} 9... Nc6 {[%clk
0:02:38.9]} 10. O-O {[%clk 0:02:57]} 10... e5 {[%clk 0:02:33.8]} 11. d5 {[%clk
0:02:51.3]} 11... Na5 {[%clk 0:02:08.7]} 12. Kh1 {[%clk 0:02:45.2]} 12... exf4
{[%clk 0:01:43.6]} 13. Bxf4 {[%clk 0:02:43.4]} 13... Bg4 {[%clk 0:01:44.2]} 14.
Nbd2 {[%clk 0:02:37.8]} 14... Rc8 {[%clk 0:01:43.4]} 15. c4 {[%clk 0:02:26]}
15... Nd7 {[%clk 0:01:38.2]} 16. Qa4 {[%clk 0:02:19.9]} 16... Nc5 {[%clk
0:01:33.4]} 17. Qa3 {[%clk 0:02:14.3]} 17... Nxd3 {[%clk 0:01:15.3]} 18. Qxd3
{[%clk 0:02:13.3]} 18... Qc7 {[%clk 0:01:14.4]} 19. Nd4 {[%clk 0:01:52.1]} 19...
a6 {[%clk 0:00:51.6]} 20. Qg3 {[%clk 0:01:37.7]} 20... Bf6 {[%clk 0:00:51.8]}
21. Bxd6 {[%clk 0:01:32.9]} 21... Qb6 {[%clk 0:00:35.6]} 22. c5 {[%clk
0:01:25.3]} 22... Rxc5 {[%clk 0:00:33.1]} 23. Rxf6 {[%clk 0:01:23.4]} 23... gxf6
{[%clk 0:00:16.8]} 24. Qxg4+ {[%clk 0:01:19.7]} 24... Kh8 {[%clk 0:00:17.2]} 25.
Bxf8 {[%clk 0:01:19.3]} 1-0

[Event "*** Titled Tuesday Blitz"]
[Site "Chess.com"]
[Date "2021.04.27"]
[Round "11"]
[White "FMalexhdez"]
[Black "DanielTitichoca"]
[Result "1-0"]
[WhiteElo "2268"]
[BlackElo "2350"]
[TimeControl "180+1"]
[EndTime "12:02:44 PDT"]
[Termination "FMalexhdez won by resignation"]

1. e4 {[%clk 0:03:00.9]} 1... c5 {[%clk 0:02:49.7]} 2. Nf3 {[%clk 0:03:00.7]}
2... d6 {[%clk 0:02:50.6]} 3. d4 {[%clk 0:03:01.1]} 3... cxd4 {[%clk 0:02:51.5]}
4. Nxd4 {[%clk 0:03:01.3]} 4... Nf6 {[%clk 0:02:51.1]} 5. Nc3 {[%clk 0:03:01.6]}
5... a6 {[%clk 0:02:47.3]} 6. h3 {[%clk 0:03:00.7]} 6... e5 {[%clk 0:02:43.3]}
7. Nde2 {[%clk 0:03:00.1]} 7... Be6 {[%clk 0:02:38.4]} 8. g4 {[%clk 0:02:49.9]}
8... d5 {[%clk 0:02:29.3]} 9. exd5 {[%clk 0:02:41.9]} 9... Nxd5 {[%clk 0:02:26]}
10. Bg2 {[%clk 0:02:42.4]} 10... Nxc3 {[%clk 0:02:15.9]} 11. Qxd8+ {[%clk
0:02:40.6]} 11... Kxd8 {[%clk 0:02:16.8]} 12. Nxc3 {[%clk 0:02:40.6]} 12... Nc6
{[%clk 0:02:13.3]} 13. Be3 {[%clk 0:02:38.9]} 13... Bb4 {[%clk 0:02:11.6]} 14.
O-O-O+ {[%clk 0:02:31]} 14... Ke7 {[%clk 0:02:09.1]} 15. Nd5+ {[%clk 0:02:29.3]}
15... Bxd5 {[%clk 0:02:06]} 16. Rxd5 {[%clk 0:02:24.8]} 16... Rhd8 {[%clk
0:02:01.1]} 17. Rhd1 {[%clk 0:02:24.4]} 17... Rxd5 {[%clk 0:02:00.1]} 18. Rxd5
{[%clk 0:02:23.2]} 18... Rc8 {[%clk 0:02:00.1]} 19. c3 {[%clk 0:02:08]} 19...
Bd6 {[%clk 0:01:59.2]} 20. Kd2 {[%clk 0:02:05.5]} 20... Nb8 {[%clk 0:01:47.9]}
21. Ra5 {[%clk 0:01:26.5]} 21... Nd7 {[%clk 0:01:42.5]} 22. Bxb7 {[%clk
0:01:16.3]} 22... Rb8 {[%clk 0:01:42.1]} 23. Bxa6 {[%clk 0:01:16.2]} 23... Rxb2+
{[%clk 0:01:42.4]} 24. Kd3 {[%clk 0:01:16.1]} 24... g6 {[%clk 0:01:37.7]} 25. g5
{[%clk 0:01:09]} 25... Nb8 {[%clk 0:01:33.2]} 26. Rb5 {[%clk 0:00:53.5]} 26...
Rxa2 {[%clk 0:01:29.9]} 27. Rb7+ {[%clk 0:00:53.2]} 27... Kd8 {[%clk 0:01:02.3]}
28. Bc4 {[%clk 0:00:51]} 28... Nd7 {[%clk 0:01:00.2]} 29. Bxa2 {[%clk
0:00:48.3]} 29... Nc5+ {[%clk 0:00:49.7]} 30. Bxc5 {[%clk 0:00:47.1]} 30... Bxc5
{[%clk 0:00:50.1]} 31. Rxf7 {[%clk 0:00:47.6]} 1-0

[Event "*** Titled Tuesday Blitz"]
[Site "Chess.com"]
[Date "2021.04.27"]
[Round "11"]
[White "Steegersee"]
[Black "zurzan"]
[Result "1-0"]
[WhiteElo "2184"]
[BlackElo "2010"]
[TimeControl "180+1"]
[EndTime "12:02:52 PDT"]
[Termination "Steegersee won by resignation"]

1. d4 {[%clk 0:02:57.2]} 1... d6 {[%clk 0:02:59.6]} 2. c4 {[%clk 0:02:56.6]}
2... g6 {[%clk 0:02:59.5]} 3. Nc3 {[%clk 0:02:57.1]} 3... f5 {[%clk 0:02:59.5]}
4. Nf3 {[%clk 0:02:57.9]} 4... Bg7 {[%clk 0:02:59.8]} 5. g3 {[%clk 0:02:58.7]}
5... Nf6 {[%clk 0:03:00.1]} 6. Bg2 {[%clk 0:02:59.6]} 6... O-O {[%clk
0:03:00.7]} 7. O-O {[%clk 0:03:00.5]} 7... c6 {[%clk 0:03:01.3]} 8. b3 {[%clk
0:02:58.7]} 8... Na6 {[%clk 0:02:57.3]} 9. Bb2 {[%clk 0:02:58.7]} 9... Qc7
{[%clk 0:02:57.5]} 10. Re1 {[%clk 0:02:51.7]} 10... e5 {[%clk 0:02:55.9]} 11. e4
{[%clk 0:02:37.1]} 11... exd4 {[%clk 0:02:52.3]} 12. Nxd4 {[%clk 0:02:35.4]}
12... fxe4 {[%clk 0:02:52.5]} 13. Nxe4 {[%clk 0:02:33.3]} 13... Nxe4 {[%clk
0:02:52.4]} 14. Rxe4 {[%clk 0:02:34.2]} 14... Bf5 {[%clk 0:02:52.2]} 15. Re1
{[%clk 0:02:14.7]} 15... c5 {[%clk 0:02:51.2]} 16. Nb5 {[%clk 0:02:12.6]} 16...
Qd7 {[%clk 0:02:39.2]} 17. Bd5+ {[%clk 0:02:08.4]} 17... Kh8 {[%clk 0:02:38.3]}
18. Bxg7+ {[%clk 0:02:07.2]} 18... Qxg7 {[%clk 0:02:39.2]} 19. Nxd6 {[%clk
0:02:06.2]} 19... Rad8 {[%clk 0:02:28.4]} 20. Nxf5 {[%clk 0:01:58.4]} 20... Rxf5
{[%clk 0:02:26.8]} 21. Qe2 {[%clk 0:01:58.5]} 21... Rdf8 {[%clk 0:02:23.4]} 22.
f4 {[%clk 0:01:51.3]} 22... Nc7 {[%clk 0:02:22.5]} 23. Rad1 {[%clk 0:01:49.1]}
23... Nxd5 {[%clk 0:02:21.7]} 24. cxd5 {[%clk 0:01:47.4]} 24... g5 {[%clk
0:02:16.5]} 25. fxg5 {[%clk 0:01:41.9]} 25... Qxg5 {[%clk 0:02:11.8]} 26. d6
{[%clk 0:01:36.2]} 26... h5 {[%clk 0:01:34.6]} 27. Qe7 {[%clk 0:01:21.9]} 27...
Qg4 {[%clk 0:01:06.8]} 28. d7 {[%clk 0:01:12.9]} 28... Qf3 {[%clk 0:00:50.6]}
29. Qe3 {[%clk 0:01:00.6]} 29... Qxe3+ {[%clk 0:00:33.6]} 30. Rxe3 {[%clk
0:00:57.4]} 30... Rd8 {[%clk 0:00:34.5]} 31. Re8+ {[%clk 0:00:55.6]} 31... Rf8
{[%clk 0:00:35.4]} 32. Rxf8+ {[%clk 0:00:55.8]} 32... Rxf8 {[%clk 0:00:34.8]}
33. d8=Q {[%clk 0:00:54.8]} 1-0

[Event "*** Titled Tuesday Blitz"]
[Site "Chess.com"]
[Date "2021.04.27"]
[Round "11"]
[White "Buffy7"]
[Black "AryanTari"]
[Result "1-0"]
[WhiteElo "2711"]
[BlackElo "2867"]
[TimeControl "180+1"]
[EndTime "12:02:54 PDT"]
[Termination "Buffy7 won by resignation"]

1. e4 {[%clk 0:03:00.9]} 1... c6 {[%clk 0:02:58.3]} 2. d4 {[%clk 0:03:00]} 2...
d5 {[%clk 0:02:58.6]} 3. Nc3 {[%clk 0:03:00.9]} 3... dxe4 {[%clk 0:02:56.4]} 4.
Nxe4 {[%clk 0:03:01.8]} 4... Nf6 {[%clk 0:02:57.1]} 5. Nxf6+ {[%clk 0:03:01.9]}
5... exf6 {[%clk 0:02:58]} 6. c3 {[%clk 0:03:01.9]} 6... Bd6 {[%clk 0:02:58.2]}
7. Bd3 {[%clk 0:03:02.3]} 7... O-O {[%clk 0:02:58.6]} 8. Qc2 {[%clk 0:03:02.5]}
8... Re8+ {[%clk 0:02:58.9]} 9. Ne2 {[%clk 0:03:03.1]} 9... h5 {[%clk
0:02:59.6]} 10. Be3 {[%clk 0:02:56.2]} 10... Nd7 {[%clk 0:02:52]} 11. O-O-O
{[%clk 0:02:55.4]} 11... b5 {[%clk 0:02:52.4]} 12. Ng3 {[%clk 0:02:35.9]} 12...
Nb6 {[%clk 0:02:44.4]} 13. Nxh5 {[%clk 0:02:18]} 13... Nd5 {[%clk 0:02:28.5]}
14. Rde1 {[%clk 0:02:10.8]} 14... Bg4 {[%clk 0:01:59]} 15. Ng3 {[%clk
0:02:00.9]} 15... Qa5 {[%clk 0:01:58.7]} 16. Bh7+ {[%clk 0:01:41.3]} 16... Kf8
{[%clk 0:01:53.2]} 17. Bf5 {[%clk 0:01:41.2]} 17... Bxf5 {[%clk 0:01:18]} 18.
Nxf5 {[%clk 0:01:40.7]} 18... Bc7 {[%clk 0:01:18.6]} 19. a3 {[%clk 0:01:20.2]}
19... Re6 {[%clk 0:01:14.8]} 20. Bd2 {[%clk 0:01:14.8]} 20... Rae8 {[%clk
0:01:08.1]} 21. Rxe6 {[%clk 0:01:12.6]} 21... Rxe6 {[%clk 0:00:21.9]} 22. c4
{[%clk 0:01:12.2]} 22... Bf4 {[%clk 0:00:19.1]} 23. cxd5 {[%clk 0:01:03.7]}
23... Re2 {[%clk 0:00:19.4]} 24. Ne3 {[%clk 0:00:59.6]} 24... Qb6 {[%clk
0:00:14.9]} 25. Bb4+ {[%clk 0:00:55]} 1-0

[Event "*** Titled Tuesday Blitz"]
[Site "Chess.com"]
[Date "2021.04.27"]
[Round "11"]
[White "Alextorngren"]
[Black "Caterpiller35"]
[Result "1/2-1/2"]
[WhiteElo "2363"]
[BlackElo "2476"]
[TimeControl "180+1"]
[EndTime "12:03:11 PDT"]
[Termination "Game drawn by repetition"]

1. d4 {[%clk 0:03:00.9]} 1... Nf6 {[%clk 0:02:58.9]} 2. c4 {[%clk 0:03:01.8]}
2... e6 {[%clk 0:02:58.6]} 3. Nc3 {[%clk 0:03:02.2]} 3... Bb4 {[%clk 0:02:57.8]}
4. Qc2 {[%clk 0:03:02.8]} 4... d5 {[%clk 0:02:57]} 5. Nf3 {[%clk 0:03:02.4]}
5... O-O {[%clk 0:02:55]} 6. Bg5 {[%clk 0:03:02.9]} 6... dxc4 {[%clk 0:02:49.4]}
7. e4 {[%clk 0:03:00]} 7... h6 {[%clk 0:02:48.8]} 8. Bxf6 {[%clk 0:02:58.8]}
8... Qxf6 {[%clk 0:02:48.2]} 9. Bxc4 {[%clk 0:02:59.7]} 9... c5 {[%clk
0:02:46.1]} 10. dxc5 {[%clk 0:02:47.6]} 10... Nd7 {[%clk 0:02:38]} 11. c6 {[%clk
0:02:45.4]} 11... bxc6 {[%clk 0:02:37.3]} 12. O-O {[%clk 0:02:45.2]} 12... Ne5
{[%clk 0:02:32.7]} 13. Nxe5 {[%clk 0:02:44.1]} 13... Qxe5 {[%clk 0:02:32.6]} 14.
Rad1 {[%clk 0:02:27.3]} 14... Rb8 {[%clk 0:02:28.8]} 15. Kh1 {[%clk 0:02:26.3]}
15... c5 {[%clk 0:02:20.1]} 16. f4 {[%clk 0:02:25]} 16... Qc7 {[%clk 0:01:37.1]}
17. Nb5 {[%clk 0:02:20.2]} 17... Qe7 {[%clk 0:01:27.6]} 18. e5 {[%clk
0:02:14.9]} 18... Bb7 {[%clk 0:01:25.6]} 19. f5 {[%clk 0:02:01.9]} 19... exf5
{[%clk 0:01:12.5]} 20. Rxf5 {[%clk 0:02:02.8]} 20... Bc8 {[%clk 0:00:44.1]} 21.
Rh5 {[%clk 0:01:56.8]} 21... Bg4 {[%clk 0:00:39.6]} 22. Rxh6 {[%clk 0:01:54.6]}
22... gxh6 {[%clk 0:00:18.7]} 23. Qg6+ {[%clk 0:01:53.2]} 23... Kh8 {[%clk
0:00:19]} 24. Qxh6+ {[%clk 0:01:54.1]} 24... Kg8 {[%clk 0:00:19]} 25. Qg6+
{[%clk 0:00:55.2]} 25... Kh8 {[%clk 0:00:18.5]} 26. Qh6+ {[%clk 0:00:43.4]}
26... Kg8 {[%clk 0:00:18.2]} 27. Qg6+ {[%clk 0:00:39.6]} 27... Kh8 {[%clk
0:00:18]} 28. Qh6+ {[%clk 0:00:39.5]} 1/2-1/2